fUSD/lending_fUSD_20240602
["ID","MTS","AMOUNT","RATE_DAILY","PERIOD"]
[328394514,1717332643532,-461.74261234,0.00018,2]
[328394515,1717332643543,-2406.2558816,0.00018,2]
[328394545,1717332645167,-109496.32123785,0.00018,2]
[328394547,1717332645179,-13817.6793821,0.00018,2]
[328394549,1717332645190,-584.00738402,0.00018,2]
[328394551,1717332645201,-301.394501,0.00018,2]
[328394552,1717332645216,-8083.19006633,0.00018,2]
[328394563,1717332646418,-6306.7145802,0.00018,2]
[328394752,1717332927974,17055.58564348,0.0003,40]
[328394755,1717333038687,-150.0,0.00032931,120]
[328394756,1717333038710,-96.99,0.00032957,120]
[328394759,1717333450519,1000.0,0.0003,40]
[328394760,1717333503238,1000.0,0.0003,30]
[328394780,1717333832311,-154.15186399,0.000149,2]
[328394781,1717333832321,-3583.91076678,0.00014999,2]
[328394782,1717333832469,-2132.32698548,0.00014999,2]
[328394783,1717333832480,-1121.50472689,0.00014999,2]
[328394784,1717333832490,-3322.07419137,0.00015,2]
[328394785,1717333832501,-267.23393513,0.00015,2]
[328394786,1717333832634,-151.6918735,0.00015,2]
[328394787,1717333832643,-346.09,0.00016338,2]
[328394788,1717333832653,-300.0,0.00017899,2]
[328394789,1717333832663,-423.46,0.000179,2]
[328394790,1717333832673,-872.03,0.000179,2]
[328394791,1717333832683,-75.43058863,0.000179,2]
[328394792,1717333832694,-311.31941137,0.000179,2]
[328394793,1717333832703,-344.796794,0.0001799,2]
[328394794,1717333832712,-151.23,0.0001799,2]
[328394795,1717333832722,-304.22081904,0.00017998,2]
[328394796,1717333832731,-524.50001624,0.00017998,5]
[328394798,1717333832740,-461.0313505,0.00017998,2]
[328394800,1717333832751,-24939.33203711,0.00018,2]
[328394803,1717333832766,-2760.52,0.00018,2]
[328394849,1717333838306,-8506.69694401,0.00018,2]
[328394851,1717333838318,-32746.83792776,0.00018,2]
[328394855,1717333838661,-1002.93599928,0.00018,2]
[328394856,1717333838674,-13013.0356013,0.00018,2]
[328394857,1717333838686,-708.8904184,0.00018,2]
[328394870,1717333841076,-703.15344822,0.00015576,2]
[328394871,1717333841088,-378.45,0.00015576,2]
[328394872,1717333841121,-1705.95594447,0.00015576,2]
[328394873,1717333841780,-3111.79124193,0.00015576,2]
[328394874,1717333841792,-3602.21195516,0.00015576,2]
[328394875,1717333841804,-498.43741022,0.00015576,2]
[328394876,1717333841813,-3630.20245861,0.00018,2]
[328394877,1717333841824,-3933.36463944,0.00018,2]
[328394878,1717333841835,-4432.26839026,0.00018,2]
[328394879,1717333841847,-6757.96750055,0.00018,2]
[328394880,1717333841860,-40392.07785512,0.00018,2]
[328394881,1717333841871,-1617.592005,0.00018,2]
[328394882,1717333841883,-1363.68834929,0.00018,2]
[328394883,1717333841894,-2023.404,0.00018,2]
[328394891,1717333843522,-3045.75226593,0.00018,2]
[328394892,1717333843571,-1601.92641799,0.00018,2]
[328394893,1717333843724,-20724.13486174,0.00018,2]
[328394900,1717333846583,-1275.09803465,0.00017999,2]
[328394901,1717333846597,-19436.04798527,0.00018,2]
[328394902,1717333846642,-682.72903785,0.00018,2]
[328394907,1717333929081,942.3848519,0.00031,32]
[328394913,1717334227788,4710.7294069,0.0003457,30]
[328394914,1717334375059,355.88117548,0.00034569,90]
[328394923,1717334829142,-496.857444,0.0001478,2]
[328394924,1717334868714,7534.45336838,0.00034569,30]
[328394925,1717334949635,4500.0,0.00034568,30]
[328394927,1717334973391,2500.0,0.00034568,30]
[328394949,1717335031691,-38.7789258,0.0001478,2]
[328394950,1717335031700,-385.81,0.00014781,2]
[328394951,1717335031713,-104.0030742,0.00014999,2]
[328394952,1717335031924,-4454.4919119,0.00014999,2]
[328394953,1717335031934,-150.0,0.00014999,2]
[328394954,1717335031944,-3367.0,0.00015,2]
[328394955,1717335031954,-725.0,0.00015,2]
[328394956,1717335031963,-1076.542,0.000152,2]
[328394957,1717335031973,-4784.062,0.000152,2]
[328394958,1717335031983,-37989.0,0.000152,2]
[328394959,1717335031992,-871.0,0.000152,2]
[328394960,1717335032002,-440.0,0.000152,2]
[328394961,1717335032011,-200.0,0.00016396,2]
[328394962,1717335032021,-210.0,0.00016499,2]
[328394963,1717335032030,-150.0,0.00016538,2]
[328394964,1717335032039,-250.0,0.0001658,2]
[328394965,1717335032049,-158.89,0.00016662,2]
[328394966,1717335032059,-499.99,0.00016719,2]
[328394968,1717335032068,-627.99,0.00016755,2]
[328394970,1717335032078,-2633.66,0.0001676,2]
[328394972,1717335032087,-1050.41,0.0001676,2]
[328394974,1717335032096,-158.89,0.00016786,2]
[328394976,1717335032106,-158.89,0.0001691,2]
[328394978,1717335032115,-171.21,0.00016915,2]
[328394980,1717335032124,-177.68,0.00016947,2]
[328394981,1717335032133,-158.89,0.00017034,2]
[328394983,1717335032143,-872.03,0.00017041,2]
[328394985,1717335032152,-385.81,0.00017045,2]
[328394987,1717335032163,-158.89,0.00017158,2]
[328394989,1717335032172,-300.0,0.00017159,2]
[328394991,1717335032183,-1000.0,0.00017212,2]
[328394993,1717335032194,-158.89,0.00017282,2]
[328394995,1717335032204,-200.0,0.00017385,2]
[328394997,1717335032213,-158.89,0.00017406,2]
[328394999,1717335032222,-158.89,0.0001753,2]
[328395001,1717335032233,-1740.02,0.0001761,2]
[328395003,1717335032243,-442.68,0.0001761,2]
[328395005,1717335032252,-13316.0,0.00017721,2]
[328395006,1717335032263,-1110.34301,0.0001782,2]
[328395008,1717335032273,-500.0,0.00017856,2]
[328395010,1717335032282,-200.0,0.00017856,2]
[328395012,1717335032292,-1000.0,0.000179,2]
[328395014,1717335032302,-1206.3982,0.000179,2]
[328395016,1717335032311,-1953.0,0.000179,2]
[328395018,1717335032320,-1000.0,0.000179,2]
[328395020,1717335032331,-292.56819059,0.0001799,2]
[328395022,1717335032340,-1531.67403765,0.00017998,2]
[328395024,1717335032352,-579.16614712,0.00017998,7]
[328395026,1717335032361,-153.0,0.00017999,5]
[328395028,1717335032370,-186400.60639056,0.00018,2]
[328395030,1717335032381,-648.94255943,0.00018,2]
[328395032,1717335032390,-2044.42202264,0.00018,2]
[328395101,1717335037604,-614.0,0.000152,2]
[328395103,1717335037614,-1224.0,0.000152,2]
[328395105,1717335037624,-412.17126416,0.00017671,2]
[328395107,1717335037634,-195.04546039,0.0001799,2]
[328395109,1717335037644,-4906.29836933,0.00018,2]
[328395121,1717335037754,-272.4610952,0.00018,2]
[328395129,1717335037818,-4756.280333,0.00018,2]
[328395133,1717335037945,-3391.31466274,0.00018,2]
[328395136,1717335037956,-2001.28266,0.00018,2]
[328395138,1717335037968,-6169.0,0.00018,2]
[328395167,1717335040581,-540.18000005,0.00018,2]
[328395168,1717335040746,-2262.45772468,0.00018,2]
[328395169,1717335040758,-1607.69559454,0.00018,2]
[328395170,1717335040771,-911.30967658,0.00018,2]
[328395171,1717335040799,-2955.92883686,0.00018,2]
[328395314,1717335112373,1990.0,0.00034568,120]
[328395315,1717335119793,3036.94811246,0.00034568,30]
[328395318,1717335227830,11728.999998,0.00034568,120]
[328395320,1717335257276,226.41543883,0.00034568,120]
[328395321,1717335259868,3698.78789109,0.00034568,120]
[328395322,1717335272778,84499.64227379,0.00034568,60]
[328395323,1717335342788,1000.0,0.00034568,90]
[328395324,1717335373064,376.20993194,0.00034568,120]
[328395325,1717335377177,192.02548656,0.00034568,120]
[328395326,1717335382071,377.0,0.00034568,120]
[328395327,1717335385872,151.94214896,0.00034568,120]
[328395328,1717335428518,839.95158338,0.00034568,120]
[328395329,1717335430652,358.16542489,0.00034568,30]
[328395330,1717335431274,1764.78745022,0.00034568,120]
[328395331,1717335431685,18209.8818521,0.00034568,120]
[328395332,1717335432187,153.63863401,0.00034568,120]
[328395333,1717335432609,191.77756599,0.00034568,120]
[328395334,1717335433701,2625.19170944,0.00034568,120]
[328395335,1717335627784,-53.01,0.00032957,120]
[328395336,1717335627813,-1000.0,0.00033,120]
[328395337,1717335668294,460.63874501,0.00030493,30]
[328395339,1717335827192,1528.6,0.00034569,30]
[328395340,1717335882901,188.23,0.00034569,30]
[328395341,1717335997322,985.5,0.00034569,30]
[328395346,1717336207516,500.0,0.00034568,30]
[328395347,1717336207982,500.0,0.00034568,30]
[328395348,1717336208321,500.0,0.00034568,30]
[328395349,1717336208765,500.0,0.00034568,30]
[328395350,1717336209187,500.0,0.00034568,30]
[328395351,1717336209750,500.0,0.00034568,30]
[328395352,1717336209991,500.0,0.00034568,30]
[328395353,1717336210373,500.0,0.00034568,30]
[328395354,1717336210773,500.0,0.00034568,30]
[328395355,1717336211143,500.0,0.00034568,30]
[328395356,1717336220568,240.2,0.00034568,30]
[328395368,1717336232181,-535.6363698,0.00013969,2]
[328395369,1717336232191,-447.95488763,0.0001397,2]
[328395370,1717336232200,-150.0,0.00013999,2]
[328395371,1717336232209,-3798.74582175,0.00013999,2]
[328395372,1717336232218,-105795.85725888,0.00014,2]
[328395422,1717336237881,-1123.302561,0.00013968,2]
[328395424,1717336237892,-2809.42720705,0.00014,2]
[328395429,1717336237933,-1499.71900023,0.00014,2]
[328395431,1717336237944,-4596.34469698,0.00014,2]
[328395440,1717336238030,-10575.11410277,0.00014,2]
[328395441,1717336238042,-32300.09590128,0.00014,2]
[328395442,1717336238077,-31419.69411653,0.00014,2]
[328395475,1717336241403,-22238.49267672,0.00014,2]
[328395477,1717336243006,-23422.15951794,0.00014,2]
[328395478,1717336243018,-92459.97293872,0.00014,2]
[328395479,1717336243028,-2033.642528,0.00014922,2]
[328395480,1717336243037,-2122.43687987,0.00015022,2]
[328395481,1717336243047,-192.7635472,0.00015022,2]
[328395482,1717336243055,-150.718,0.000152,2]
[328395483,1717336243065,-9601.52829126,0.000152,2]
[328395484,1717336243077,-5012.84792341,0.000152,2]
[328395485,1717336243089,-5514.84124466,0.000152,2]
[328395486,1717336243101,-968.51373027,0.000152,2]
[328395487,1717336243113,-469.67010088,0.000152,2]
[328395488,1717336243124,-5808.43270952,0.000152,2]
[328395489,1717336243134,-411.84,0.00015225,2]
[328395490,1717336243143,-154.0,0.00015399,2]
[328395491,1717336243153,-150.0,0.00016699,2]
[328395492,1717336243162,-150.99,0.00016699,2]
[328395493,1717336243172,-1222.0,0.00016898,2]
[328395494,1717336243180,-1113.88164022,0.00017054,2]
[328395495,1717336243193,-2192.94884986,0.00017054,2]
[328395496,1717336243204,-10993.9145068,0.00017054,2]
[328395497,1717336243216,-765.12000001,0.00017054,2]
[328395498,1717336243364,-1243.822605,0.00017054,2]
[328395499,1717336243376,-1229.69159329,0.00017054,2]
[328395501,1717336243388,-1134.31999994,0.00017054,2]
[328395502,1717336243398,-912.45,0.00017054,2]
[328395512,1717336245876,-445.8306935,0.00013999,2]
[328395513,1717336245888,-373.0693565,0.00017054,2]
[328395514,1717336246138,-500.0,0.00017054,2]
[328395516,1717336246150,-404.48230813,0.00017054,2]
[328395517,1717336246161,-3036.29914025,0.00017054,2]
[328395518,1717336246171,-1355.83,0.00017186,2]
[328395519,1717336246180,-1755.1,0.00017254,2]
[328395520,1717336246189,-1671.40260499,0.00017347,2]
[328395521,1717336246259,-362.23992296,0.00017347,2]
[328395522,1717336246268,-56.76104778,0.00017394,2]
[328395523,1717336246279,-193.23895222,0.00017394,2]
[328395524,1717336246289,-411.84,0.00017489,2]
[328395525,1717336246298,-657.92104778,0.00017813,2]
[328395526,1717336249616,506.47966091,0.00034568,30]
[328395527,1717336250507,500.0,0.00034568,30]
[328395528,1717336251126,439.70137687,0.00034568,30]
[328395529,1717336252735,152.32746835,0.00034568,30]
[328395530,1717336252795,567.19,0.00034568,30]
[328395531,1717336253164,567.19,0.00034568,30]
[328395532,1717336253435,567.19,0.00034568,30]
[328395533,1717336254037,567.19,0.00034568,30]
[328395534,1717336254328,567.19,0.00034568,30]
[328395535,1717336254589,567.19,0.00034568,30]
[328395536,1717336255183,567.19,0.00034568,30]
[328395537,1717336255452,567.19,0.00034568,30]
[328395538,1717336256088,567.19,0.00034568,30]
[328395539,1717336256364,567.19,0.00034568,30]
[328395540,1717336256532,502.74353582,0.00034568,30]
[328395541,1717336256683,567.19,0.00034568,30]
[328395542,1717336256951,567.19,0.00034568,30]
[328395543,1717336257024,558.56351372,0.00034568,30]
[328395544,1717336257228,567.19,0.00034568,30]
[328395545,1717336257313,594.82,0.00034568,30]
[328395546,1717336257480,567.19,0.00034568,30]
[328395547,1717336257553,621.633675,0.00034568,30]
[328395548,1717336257783,594.82,0.00034568,30]
[328395549,1717336257821,567.19,0.00034568,30]
[328395550,1717336257882,594.82,0.00034568,30]
[328395551,1717336258028,567.19,0.00034568,30]
[328395552,1717336258134,594.82,0.00034568,30]
[328395553,1717336258297,567.19,0.00034568,30]
[328395554,1717336258407,594.82,0.00034568,30]
[328395555,1717336258562,567.19,0.00034568,30]
[328395556,1717336258708,594.82,0.00034568,30]
[328395557,1717336258827,567.19,0.00034568,30]
[328395558,1717336259180,594.82,0.00034568,30]
[328395559,1717336259213,567.19,0.00034568,30]
[328395560,1717336259245,594.82,0.00034568,30]
[328395561,1717336259370,567.19,0.00034568,30]
[328395562,1717336259579,179.08043841,0.00034568,30]
[328395563,1717336259660,567.19,0.00034568,30]
[328395564,1717336259882,594.82,0.00034568,30]
[328395565,1717336259911,567.19,0.00034568,30]
[328395566,1717336260093,2574.94,0.00034568,30]
[328395567,1717336260149,567.2265572,0.00034568,30]
[328395568,1717336260184,594.82,0.00034568,30]
[328395569,1717336260367,503.88030865,0.00034568,30]
[328395570,1717336260395,535.09960988,0.00034568,30]
[328395571,1717336260461,594.82,0.00034568,30]
[328395572,1717336260684,2574.94,0.00034568,30]
[328395573,1717336260716,594.82,0.00034568,30]
[328395574,1717336260965,2574.94,0.00034568,30]
[328395575,1717336261079,594.82,0.00034568,30]
[328395576,1717336261107,500.0,0.00034568,30]
[328395577,1717336261251,2574.94,0.00034568,30]
[328395578,1717336261330,594.82,0.00034568,30]
[328395579,1717336261452,500.0,0.00034568,30]
[328395580,1717336261526,2574.94,0.00034568,30]
[328395581,1717336261591,594.82,0.00034568,30]
[328395582,1717336261734,625.18359942,0.00034568,30]
[328395583,1717336261791,2574.94,0.00034568,30]
[328395584,1717336261858,594.82,0.00034568,30]
[328395585,1717336262080,2574.94,0.00034568,30]
[328395586,1717336262264,568.58018539,0.00034568,30]
[328395587,1717336262353,2574.94,0.00034568,30]
[328395588,1717336262487,594.82,0.00034568,30]
[328395589,1717336262617,2574.94,0.00034568,30]
[328395590,1717336262790,594.82,0.00034568,30]
[328395591,1717336262910,505.21601865,0.00034568,30]
[328395592,1717336262938,2574.94,0.00034568,30]
[328395593,1717336263045,594.82,0.00034568,30]
[328395594,1717336263153,2574.94,0.00034568,30]
[328395595,1717336263329,594.82,0.00034568,30]
[328395596,1717336263410,587.49,0.00034568,30]
[328395597,1717336263474,2574.94,0.00034568,30]
[328395598,1717336263690,587.49,0.00034568,30]
[328395599,1717336263733,594.82,0.00034568,30]
[328395600,1717336263762,2574.94,0.00034568,30]
[328395601,1717336264067,594.82,0.00034568,30]
[328395602,1717336264095,2574.94,0.00034568,30]
[328395603,1717336264271,594.82,0.00034568,30]
[328395604,1717336264300,2574.94,0.00034568,30]
[328395605,1717336264501,587.49,0.00034568,30]
[328395606,1717336264541,2574.94,0.00034568,30]
[328395607,1717336264569,595.05,0.00034568,30]
[328395608,1717336264768,587.49,0.00034568,30]
[328395609,1717336264812,2574.94,0.00034568,30]
[328395610,1717336265040,587.49,0.00034568,30]
[328395611,1717336265072,2574.94,0.00034568,30]
[328395612,1717336265286,587.49,0.00034568,30]
[328395613,1717336265345,2574.94,0.00034568,30]
[328395614,1717336265568,587.49,0.00034568,30]
[328395615,1717336265701,2574.94,0.00034568,30]
[328395616,1717336265896,587.49,0.00034568,30]
[328395617,1717336266097,587.49,0.00034568,30]
[328395618,1717336266243,500.0,0.00034568,30]
[328395619,1717336266506,587.49,0.00034568,30]
[328395620,1717336266575,812.53,0.00034568,30]
[328395621,1717336266647,2574.94,0.00034568,30]
[328395622,1717336266761,1687.58,0.00034568,30]
[328395623,1717336266790,587.49,0.00034568,30]
[328395624,1717336266847,812.53,0.00034568,30]
[328395625,1717336267005,2574.94,0.00034568,30]
[328395626,1717336267035,1687.58,0.00034568,30]
[328395627,1717336267078,587.49,0.00034568,30]
[328395628,1717336267129,812.53,0.00034568,30]
[328395629,1717336267168,500.0,0.00034568,30]
[328395630,1717336267306,1687.58,0.00034568,30]
[328395631,1717336267344,587.49,0.00034568,30]
[328395632,1717336267389,2574.94,0.00034568,30]
[328395633,1717336267425,812.53,0.00034568,30]
[328395634,1717336267459,171.14159599,0.00034568,30]
[328395635,1717336267572,1687.58,0.00034568,30]
[328395636,1717336267629,587.49,0.00034568,30]
[328395637,1717336267669,2575.03576552,0.00034568,30]
[328395638,1717336267724,812.53,0.00034568,30]
[328395640,1717336267817,1687.58,0.00034568,30]
[328395641,1717336267886,587.49,0.00034568,30]
[328395642,1717336268001,812.53,0.00034568,30]
[328395643,1717336268065,500.0,0.00034568,30]
[328395644,1717336268157,587.49,0.00034568,30]
[328395645,1717336268198,1687.58,0.00034568,30]
[328395646,1717336268263,812.53,0.00034568,30]
[328395647,1717336268368,544.06573869,0.00034568,30]
[328395648,1717336268416,587.49,0.00034568,30]
[328395649,1717336268481,1687.58,0.00034568,30]
[328395650,1717336268532,812.53,0.00034568,30]
[328395651,1717336268734,1687.58,0.00034568,30]
[328395652,1717336268767,587.49,0.00034568,30]
[328395653,1717336268809,812.53,0.00034568,30]
[328395654,1717336268996,1687.58,0.00034568,30]
[328395655,1717336269086,812.53,0.00034568,30]
[328395657,1717336269634,1687.58,0.00034568,30]
[328395658,1717336269667,587.49,0.00034568,30]
[328395659,1717336269700,812.53,0.00034568,30]
[328395660,1717336269735,1687.58,0.00034568,30]
[328395661,1717336269766,587.49,0.00034568,30]
[328395662,1717336269804,500.0,0.00034568,30]
[328395663,1717336269832,812.53,0.00034568,30]
[328395664,1717336269865,587.49,0.00034568,30]
[328395665,1717336269914,812.53,0.00034568,30]
[328395666,1717336269943,1687.58,0.00034568,30]
[328395667,1717336270118,587.49,0.00034568,30]
[328395668,1717336270175,812.53,0.00034568,30]
[328395669,1717336270225,180.54321327,0.00034568,30]
[328395670,1717336270274,1687.58,0.00034568,30]
[328395671,1717336270353,500.0,0.00034568,30]
[328395672,1717336270468,812.53,0.00034568,30]
[328395673,1717336270539,1687.58,0.00034568,30]
[328395674,1717336270643,500.0,0.00034568,30]
[328395675,1717336270681,275.40561842,0.00034568,30]
[328395676,1717336270753,812.53,0.00034568,30]
[328395677,1717336270792,587.49,0.00034568,30]
[328395678,1717336270917,500.0,0.00034568,30]
[328395679,1717336271081,587.64968678,0.00034568,30]
[328395680,1717336271177,503.52206349,0.00034568,30]
[328395681,1717336271280,1687.58,0.00034568,30]
[328395682,1717336271465,812.53,0.00034568,30]
[328395683,1717336271729,812.53,0.00034568,30]
[328395684,1717336271759,1687.58,0.00034568,30]
[328395685,1717336271986,812.53,0.00034568,30]
[328395686,1717336272015,1687.58,0.00034568,30]
[328395687,1717336272244,812.53,0.00034568,30]
[328395688,1717336272275,1687.58,0.00034568,30]
[328395689,1717336272528,1687.58,0.00034568,30]
[328395690,1717336272557,812.53,0.00034568,30]
[328395691,1717336272793,1687.58,0.00034568,30]
[328395692,1717336272823,812.53,0.00034568,30]
[328395693,1717336273077,1687.58,0.00034568,30]
[328395694,1717336273107,812.53,0.00034568,30]
[328395695,1717336273340,812.68209723,0.00034568,30]
[328395696,1717336273374,1687.58,0.00034568,30]
[328395697,1717336273640,1687.58,0.00034568,30]
[328395698,1717336274170,1687.6879,0.00034568,30]
[328395699,1717336274390,500.0,0.00034568,30]
[328395700,1717336274662,159.22199482,0.00034568,30]
[328395701,1717336274879,325.3441442,0.00034568,30]
[328395702,1717336276281,500.0,0.00034568,30]
[328395703,1717336276556,500.0,0.00034568,30]
[328395704,1717336276803,500.0,0.00034568,30]
[328395705,1717336276985,567.89009317,0.00034568,30]
[328395706,1717336277066,500.0,0.00034568,30]
[328395707,1717336277323,500.0,0.00034568,30]
[328395708,1717336277542,500.0,0.00034568,30]
[328395709,1717336277839,500.0,0.00034568,30]
[328395710,1717336277909,500.0,0.00034568,30]
[328395711,1717336278095,500.0,0.00034568,30]
[328395712,1717336278345,500.0,0.00034568,30]
[328395713,1717336278374,500.0,0.00034568,30]
[328395714,1717336278611,500.0,0.00034568,30]
[328395715,1717336278768,504.79434408,0.00034568,30]
[328395716,1717336278872,500.0,0.00034568,30]
[328395717,1717336278939,500.0,0.00034568,30]
[328395718,1717336279017,585.83786224,0.00034568,30]
[328395719,1717336279141,500.0,0.00034568,30]
[328395720,1717336279259,500.0,0.00034568,30]
[328395721,1717336279527,556.35523292,0.00034568,30]
[328395722,1717336279567,500.0,0.00034568,30]
[328395723,1717336279595,500.0,0.00034568,30]
[328395724,1717336279956,500.0,0.00034568,30]
[328395725,1717336279989,560.78,0.00034568,30]
[328395726,1717336280018,500.0,0.00034568,30]
[328395727,1717336280053,500.0,0.00034568,30]
[328395728,1717336280174,500.0,0.00034568,30]
[328395729,1717336280358,500.0,0.00034568,30]
[328395730,1717336280431,382.3429032,0.00034568,30]
[328395731,1717336280460,560.78,0.00034568,30]
[328395732,1717336280621,500.0,0.00034568,30]
[328395733,1717336280719,560.78,0.00034568,30]
[328395734,1717336280876,500.0,0.00034568,30]
[328395735,1717336281007,560.78,0.00034568,30]
[328395736,1717336281067,500.0,0.00034568,30]
[328395737,1717336281223,351.81771771,0.00034568,30]
[328395738,1717336281255,638.40213353,0.00034568,30]
[328395739,1717336281403,500.0,0.00034568,30]
[328395740,1717336281595,560.78,0.00034568,30]
[328395741,1717336281680,500.0,0.00034568,30]
[328395742,1717336281872,560.78,0.00034568,30]
[328395743,1717336281944,500.0,0.00034568,30]
[328395744,1717336282156,560.78,0.00034568,30]
[328395745,1717336282239,500.0,0.00034568,30]
[328395746,1717336282413,560.78,0.00034568,30]
[328395747,1717336282487,500.0,0.00034568,30]
[328395748,1717336282695,560.78,0.00034568,30]
[328395749,1717336282767,500.0,0.00034568,30]
[328395750,1717336282924,560.78,0.00034568,30]
[328395751,1717336283014,500.0,0.00034568,30]
[328395752,1717336283181,560.78,0.00034568,30]
[328395753,1717336283284,598.69318102,0.00034568,30]
[328395754,1717336283409,500.0,0.00034568,30]
[328395755,1717336283442,560.78,0.00034568,30]
[328395756,1717336283669,500.0,0.00034568,30]
[328395757,1717336283752,560.78,0.00034568,30]
[328395758,1717336283954,500.0,0.00034568,30]
[328395759,1717336284047,560.78,0.00034568,30]
[328395760,1717336284236,500.0,0.00034568,30]
[328395761,1717336284308,560.78,0.00034568,30]
[328395762,1717336284511,500.0,0.00034568,30]
[328395763,1717336284617,560.78,0.00034568,30]
[328395764,1717336284916,560.78,0.00034568,30]
[328395765,1717336285115,500.0,0.00034568,30]
[328395766,1717336285179,560.78,0.00034568,30]
[328395767,1717336285393,500.0,0.00034568,30]
[328395768,1717336285455,560.78,0.00034568,30]
[328395769,1717336285695,500.0,0.00034568,30]
[328395770,1717336285723,560.78,0.00034568,30]
[328395771,1717336285755,232.81623115,0.00034568,30]
[328395772,1717336285992,560.78,0.00034568,30]
[328395773,1717336286024,500.0,0.00034568,30]
[328395774,1717336286413,500.0,0.00034568,30]
[328395775,1717336286447,560.78,0.00034568,30]
[328395776,1717336286508,516.39868104,0.00034568,30]
[328395777,1717336286589,560.78,0.00034568,30]
[328395778,1717336286620,500.0,0.00034568,30]
[328395779,1717336286872,500.0,0.00034568,30]
[328395780,1717336286907,560.99042694,0.00034568,30]
[328395781,1717336287174,500.0,0.00034568,30]
[328395782,1717336287466,500.0,0.00034568,30]
[328395783,1717336287745,243.68151353,0.00034568,30]
[328395784,1717336290245,500.0,0.00034568,30]
[328395785,1717336290341,591.33987534,0.00034568,30]
[328395786,1717336290370,543.70932345,0.00034568,30]
[328395787,1717336291332,500.0,0.00034568,30]
[328395788,1717336291628,500.0,0.00034568,30]
[328395789,1717336291938,500.0,0.00034568,30]
[328395790,1717336291976,566.11444911,0.00034568,30]
[328395791,1717336292439,503.3220833,0.00034568,30]
[328395792,1717336292600,500.0,0.00034568,30]
[328395793,1717336292876,500.0,0.00034568,30]
[328395794,1717336293178,500.0,0.00034568,30]
[328395795,1717336293451,500.0,0.00034568,30]
[328395796,1717336293751,500.0,0.00034568,30]
[328395797,1717336294018,500.0,0.00034568,30]
[328395798,1717336294303,500.0,0.00034568,30]
[328395799,1717336294484,504.85212594,0.00034568,30]
[328395800,1717336294574,500.0,0.00034568,30]
[328395801,1717336294702,500.0,0.00034568,30]
[328395802,1717336294872,500.0,0.00034568,30]
[328395803,1717336294966,500.0,0.00034568,30]
[328395804,1717336294994,500.0,0.00034568,30]
[328395805,1717336295123,500.0,0.00034568,30]
[328395806,1717336295236,500.0,0.00034568,30]
[328395807,1717336295286,500.0,0.00034568,30]
[328395808,1717336295376,500.0,0.00034568,30]
[328395809,1717336295494,500.0,0.00034568,30]